[Event "Rapid Tournament (RAP)"]
[Site "Biel, Switzerland"]
[Date "2026.07.12"]
[Round "3.14"]
[White "Xu, Chang(Cq)"]
[Black "Maier, Christian"]
[Result "1-0"]
[TimeControl "15 + 5"]
[WhiteTitle "-"]
[BlackTitle "-"]
[WhiteFideId "8641757"]
[BlackFideId "4601955"]
[WhiteElo "2082"]
[BlackElo "2314"]

1. e4 {[%clk 00:15:07]} e5 {[%clk 00:15:09]} {[%emt 00:00:02]} 2. Nf3 {[%clk
00:15:10]} {[%emt 00:00:02]} Nc6 {[%clk 00:15:13]} {[%emt 00:00:03]} 3. Bb5
{[%clk 00:15:13]} a6 {[%clk 00:15:16]} {[%emt 00:00:02]} 4. Ba4 {[%clk
00:15:16]} {[%emt 00:00:01]} Nf6 {[%clk 00:15:20]} {[%emt 00:00:03]} 5. O-O
{[%clk 00:15:18]} {[%emt 00:00:01]} Be7 {[%clk 00:15:24]} {[%emt 00:00:01]} 6.
Re1 {[%clk 00:15:20]} {[%emt 00:00:02]} b5 {[%clk 00:15:27]} {[%emt 00:00:03]}
7. Bb3 {[%clk 00:15:24]} O-O {[%clk 00:15:29]} {[%emt 00:00:02]} 8. c3 {[%clk
00:15:24]} {[%emt 00:00:05]} d6 {[%clk 00:15:29]} {[%emt 00:00:05]} 9. h3
{[%clk 00:15:27]} {[%emt 00:00:02]} Re8 {[%clk 00:15:21]} {[%emt 00:00:14]} 10.
d4 {[%clk 00:14:54]} {[%emt 00:00:37]} Bf8 {[%clk 00:15:19]} {[%emt 00:00:08]}
11. Nbd2 {[%clk 00:14:45]} {[%emt 00:00:13]} Na5 {[%clk 00:15:09]} {[%emt
00:00:16]} 12. Bc2 {[%clk 00:14:45]} {[%emt 00:00:05]} Bb7 {[%clk 00:15:12]}
{[%emt 00:00:02]} 13. a4 {[%clk 00:14:15]} {[%emt 00:00:35]} h6 {[%clk
00:13:32]} {[%emt 00:01:45]} 14. Bd3 {[%clk 00:14:10]} {[%emt 00:00:09]} Qd7
{[%clk 00:12:54]} {[%emt 00:00:44]} 15. b3 {[%clk 00:13:49]} {[%emt 00:00:25]}
exd4 {[%clk 00:12:32]} {[%emt 00:00:28]} 16. cxd4 {[%clk 00:13:45]} {[%emt
00:00:09]} Nc6 {[%clk 00:12:34]} {[%emt 00:00:03]} 17. Ba3 {[%clk 00:12:22]}
{[%emt 00:01:28]} Ne7 {[%clk 00:11:35]} {[%emt 00:01:04]} 18. Nf1 {[%clk
00:11:15]} {[%emt 00:01:11]} Ng6 {[%clk 00:11:37]} {[%emt 00:00:04]} 19. Ng3
{[%clk 00:11:15]} {[%emt 00:00:04]} Nf4 {[%clk 00:10:12]} {[%emt 00:01:31]} 20.
Bc2 {[%clk 00:11:14]} {[%emt 00:00:05]} c5 {[%clk 00:10:07]} {[%emt 00:00:11]}
21. d5 {[%clk 00:10:36]} {[%emt 00:00:42]} g6 {[%clk 00:09:32]} {[%emt
00:00:40]} 22. Bb2 {[%clk 00:10:10]} {[%emt 00:00:31]} Bg7 {[%clk 00:09:36]}
{[%emt 00:00:01]} 23. Qd2 {[%clk 00:09:54]} {[%emt 00:00:21]} N4h5 {[%clk
00:09:28]} {[%emt 00:00:14]} 24. Nf1 {[%clk 00:09:51]} {[%emt 00:00:07]} Rac8
{[%clk 00:06:33]} {[%emt 00:03:01]} 25. N1h2 {[%clk 00:09:37]} {[%emt
00:00:17]} Nh7 {[%clk 00:06:33]} {[%emt 00:00:06]} 26. Bxg7 {[%clk 00:09:26]}
{[%emt 00:00:15]} Nxg7 {[%clk 00:06:30]} {[%emt 00:00:09]} 27. Qxh6 {[%clk
00:09:20]} {[%emt 00:00:11]} c4 {[%clk 00:06:25]} {[%emt 00:00:11]} 28. Ng4
{[%clk 00:08:37]} {[%emt 00:00:46]} Qe7 {[%clk 00:06:07]} {[%emt 00:00:25]} 29.
axb5 {[%clk 00:08:10]} {[%emt 00:00:32]} axb5 {[%clk 00:06:08]} {[%emt
00:00:04]} 30. bxc4 {[%clk 00:07:40]} {[%emt 00:00:34]} Rxc4 {[%clk 00:06:09]}
{[%emt 00:00:05]} 31. Bd3 {[%clk 00:07:32]} {[%emt 00:00:12]} Rc5 {[%clk
00:05:42]} {[%emt 00:00:33]} 32. Ra7 {[%clk 00:07:07]} {[%emt 00:00:30]} Rb8
{[%emt 00:01:01]} 33. Rb1 {[%clk 00:06:28]} Ne8 {[%clk 00:04:21]} {[%emt
00:01:14]} 34. Rxb5 {[%clk 00:05:23]} {[%emt 00:01:10]} Rxb5 {[%clk 00:03:59]}
{[%emt 00:00:27]} 35. Bxb5 {[%clk 00:05:25]} {[%emt 00:00:02]} Qxe4 {[%clk
00:03:54]} {[%emt 00:00:11]} 36. Bxe8 {[%clk 00:05:23]} {[%emt 00:00:07]} Qb1+
{[%clk 00:02:40]} {[%emt 00:01:19]} 37. Kh2 {[%clk 00:05:25]} {[%emt 00:00:02]}
Rxe8 {[%clk 00:02:43]} {[%emt 00:00:02]} 38. Ng5 {[%clk 00:05:20]} {[%emt
00:00:10]} 1-0

[Event "Rapid Tournament (RAP)"]
[Site "Biel, Switzerland"]
[Date "2026.07.12"]
[Round "3.15"]
[White "Lu, Miaoyi"]
[Black "Haugner, Jan"]
[Result "1-0"]
[TimeControl "15 + 5"]
[WhiteTitle "-"]
[BlackTitle "-"]
[WhiteFideId "8618020"]
[BlackFideId "24655244"]
[WhiteElo "2309"]
[BlackElo "2079"]

1. e4 {[%clk 00:15:09]} c5 {[%clk 00:15:09]} 2. Nc3 {[%clk 00:14:54]} {[%emt
00:00:19]} a6 {[%clk 00:15:13]} {[%emt 00:00:03]} 3. g3 {[%clk 00:14:45]}
{[%emt 00:00:12]} b5 {[%clk 00:15:16]} {[%emt 00:00:02]} 4. Bg2 {[%clk
00:14:49]} Bb7 {[%clk 00:15:21]} 5. Nge2 {[%clk 00:14:50]} {[%emt 00:00:04]} e6
{[%clk 00:15:22]} {[%emt 00:00:04]} 6. d4 {[%clk 00:14:41]} {[%emt 00:00:13]}
cxd4 {[%clk 00:15:25]} {[%emt 00:00:02]} 7. Nxd4 {[%clk 00:14:45]} {[%emt
00:00:01]} Nc6 {[%clk 00:15:16]} {[%emt 00:00:14]} 8. O-O {[%clk 00:14:47]}
{[%emt 00:00:03]} Qb6 {[%clk 00:14:59]} {[%emt 00:00:22]} 9. Nb3 {[%clk
00:14:18]} {[%emt 00:00:34]} d6 {[%clk 00:12:49]} {[%emt 00:02:15]} 10. a4
{[%clk 00:14:21]} {[%emt 00:00:02]} b4 {[%clk 00:12:15]} {[%emt 00:00:40]} 11.
Be3 {[%clk 00:14:25]} {[%emt 00:00:01]} Qc7 {[%clk 00:12:18]} {[%emt 00:00:01]}
12. Nb1 {[%clk 00:13:45]} {[%emt 00:00:45]} a5 {[%clk 00:12:05]} {[%emt
00:00:19]} 13. N1d2 {[%clk 00:13:32]} {[%emt 00:00:17]} Nf6 {[%clk 00:12:00]}
{[%emt 00:00:10]} 14. Rc1 {[%clk 00:12:46]} {[%emt 00:00:51]} Ne5 {[%clk
00:11:31]} {[%emt 00:00:34]} 15. h3 {[%clk 00:12:15]} {[%emt 00:00:36]} Be7
{[%clk 00:10:27]} {[%emt 00:01:10]} 16. c3 {[%clk 00:11:47]} {[%emt 00:00:33]}
Nd3 {[%clk 00:09:17]} {[%emt 00:01:14]} 17. Rc2 {[%clk 00:11:51]} {[%emt
00:00:01]} Qd7 {[%clk 00:09:10]} {[%emt 00:00:11]} 18. Nc4 {[%clk 00:11:42]}
{[%emt 00:00:15]} Qxa4 {[%clk 00:08:36]} {[%emt 00:00:39]} 19. Rd2 {[%clk
00:06:26]} {[%emt 00:05:21]} Qb5 {[%clk 00:04:09]} {[%emt 00:04:33]} 20. Nb6
{[%clk 00:06:07]} {[%emt 00:00:23]} Ra6 {[%clk 00:02:42]} {[%emt 00:01:32]} 21.
c4 {[%clk 00:05:58]} {[%emt 00:00:15]} Qc6 {[%clk 00:02:35]} {[%emt 00:00:12]}
22. Rxd3 {[%clk 00:05:55]} {[%emt 00:00:07]} Rxb6 {[%clk 00:02:37]} {[%emt
00:00:04]} 23. Nxa5 {[%clk 00:05:54]} {[%emt 00:00:06]} Qc7 {[%clk 00:02:31]}
{[%emt 00:00:10]} 24. Bxb6 {[%clk 00:05:36]} {[%emt 00:00:23]} Qxb6 {[%clk
00:02:35]} 25. Nxb7 {[%clk 00:05:40]} {[%emt 00:00:01]} Qxb7 {[%clk 00:02:39]}
26. e5 {[%clk 00:05:43]} {[%emt 00:00:02]} 1-0

[Event "Rapid Tournament (RAP)"]
[Site "Biel, Switzerland"]
[Date "2026.07.12"]
[Round "3.16"]
[White "Ling, Chenxuan"]
[Black "Cherniaev, Alexander"]
[Result "1/2-1/2"]
[TimeControl "15 + 5"]
[WhiteTitle "-"]
[BlackTitle "-"]
[WhiteFideId "30983118"]
[BlackFideId "4117301"]
[WhiteElo "2077"]
[BlackElo "2299"]

1. d4 {[%clk 00:15:07]} {[%emt 00:00:03]} Nf6 {[%clk 00:15:08]} 2. Bf4 {[%clk
00:15:09]} {[%emt 00:00:07]} d6 {[%clk 00:15:06]} {[%emt 00:00:05]} 3. e3
{[%clk 00:15:12]} {[%emt 00:00:03]} g6 {[%clk 00:15:09]} {[%emt 00:00:01]} 4.
Bd3 {[%clk 00:15:15]} {[%emt 00:00:01]} Bg7 {[%clk 00:15:13]} {[%emt 00:00:02]}
5. Nf3 {[%clk 00:15:16]} {[%emt 00:00:04]} O-O {[%clk 00:15:16]} {[%emt
00:00:02]} 6. O-O {[%clk 00:15:19]} {[%emt 00:00:02]} Nc6 {[%clk 00:15:17]}
{[%emt 00:00:03]} 7. Nbd2 {[%clk 00:15:14]} {[%emt 00:00:10]} Nd7 {[%clk
00:15:15]} {[%emt 00:00:07]} 8. c3 {[%clk 00:15:04]} {[%emt 00:00:16]} e5
{[%clk 00:15:09]} {[%emt 00:00:11]} 9. Bg3 {[%clk 00:15:07]} {[%emt 00:00:01]}
f5 {[%clk 00:14:51]} {[%emt 00:00:24]} 10. h3 {[%clk 00:14:41]} {[%emt
00:00:30]} Kh8 {[%clk 00:14:45]} {[%emt 00:00:11]} 11. Bb5 {[%emt 00:00:10]} g5
{[%clk 00:14:29]} {[%emt 00:00:21]} 12. Bxc6 {[%clk 00:14:32]} {[%emt
00:00:11]} bxc6 {[%clk 00:14:32]} 13. dxe5 {[%clk 00:14:35]} {[%emt 00:00:01]}
dxe5 {[%clk 00:14:36]} {[%emt 00:00:01]} 14. Re1 {[%clk 00:14:22]} {[%emt
00:00:19]} Ba6 {[%clk 00:13:43]} {[%emt 00:00:58]} 15. Nb3 {[%clk 00:14:22]}
{[%emt 00:00:04]} Rb8 {[%clk 00:10:03]} {[%emt 00:03:45]} 16. Nxg5 {[%clk
00:13:54]} {[%emt 00:00:34]} Qxg5 {[%clk 00:10:06]} {[%emt 00:00:02]} 17. Qxd7
{[%clk 00:13:55]} {[%emt 00:00:04]} f4 {[%clk 00:10:10]} {[%emt 00:00:02]} 18.
exf4 {[%clk 00:13:57]} {[%emt 00:00:03]} exf4 {[%clk 00:10:14]} 19. Bh2 {[%clk
00:13:57]} {[%emt 00:00:04]} Bc4 {[%clk 00:10:06]} {[%emt 00:00:13]} 20. Qg4
{[%clk 00:13:11]} {[%emt 00:00:51]} Qxg4 {[%clk 00:09:51]} {[%emt 00:00:21]} 21.
hxg4 {[%clk 00:13:15]} Bxb3 {[%clk 00:09:54]} {[%emt 00:00:02]} 22. axb3 {[%clk
00:13:19]} {[%emt 00:00:01]} Rxb3 {[%clk 00:09:57]} {[%emt 00:00:02]} 23. Re4
{[%clk 00:13:23]} Rxb2 {[%clk 00:09:13]} {[%emt 00:00:50]} 24. Bxf4 {[%clk
00:13:23]} {[%emt 00:00:04]} Bxc3 {[%clk 00:09:17]} {[%emt 00:00:02]} 25. Rxa7
{[%clk 00:13:20]} {[%emt 00:00:08]} Rb1+ {[%clk 00:09:20]} {[%emt 00:00:02]} 26.
Kh2 {[%clk 00:13:23]} {[%emt 00:00:02]} Rb4 {[%clk 00:06:36]} {[%emt 00:02:49]}
27. Rxb4 {[%clk 00:12:27]} {[%emt 00:01:01]} Bxb4 {[%clk 00:06:39]} {[%emt
00:00:02]} 28. Be5+ {[%clk 00:11:56]} {[%emt 00:00:35]} Kg8 {[%clk 00:06:43]}
29. Rxc7 {[%clk 00:11:56]} {[%emt 00:00:05]} Rxf2 {[%clk 00:06:46]} {[%emt
00:00:02]} 30. Rg7+ {[%clk 00:11:55]} {[%emt 00:00:07]} Kf8 {[%clk 00:06:46]}
{[%emt 00:00:05]} 31. Rxh7 {[%clk 00:11:58]} {[%emt 00:00:01]} Be7 {[%clk
00:06:36]} {[%emt 00:00:15]} 32. Rh5 {[%clk 00:10:54]} {[%emt 00:01:09]} Re2
{[%clk 00:06:33]} {[%emt 00:00:08]} 33. Rf5+ {[%clk 00:10:50]} {[%emt
00:00:09]} Kg8 {[%clk 00:05:57]} {[%emt 00:00:41]} 34. Kh3 {[%clk 00:10:49]}
{[%emt 00:00:06]} Bf8 {[%clk 00:04:55]} {[%emt 00:01:08]} 35. g5 {[%clk
00:10:33]} {[%emt 00:00:20]} Bg7 {[%clk 00:04:59]} {[%emt 00:00:02]} 36. Bf4
{[%clk 00:10:16]} {[%emt 00:00:22]} Kh7 {[%clk 00:04:53]} {[%emt 00:00:10]} 37.
Rc5 {[%clk 00:10:11]} {[%emt 00:00:11]} Re6 {[%clk 00:04:56]} {[%emt 00:00:02]}
38. Kg4 {[%clk 00:10:11]} {[%emt 00:00:04]} Kg6 {[%clk 00:05:00]} 39. Rc4
{[%clk 00:10:11]} {[%emt 00:00:05]} Bf8 {[%clk 00:05:00]} {[%emt 00:00:05]} 40.
Ra4 {[%clk 00:10:07]} {[%emt 00:00:09]} Re8 {[%clk 00:04:22]} {[%emt 00:00:43]}
41. g3 {[%clk 00:09:57]} {[%emt 00:00:16]} Re6 {[%clk 00:04:15]} {[%emt
00:00:12]} 42. Ra8 {[%clk 00:09:58]} {[%emt 00:00:04]} Bg7 {[%clk 00:04:17]}
{[%emt 00:00:03]} 43. Rc8 {[%clk 00:10:01]} {[%emt 00:00:02]} Bd4 {[%clk
00:04:14]} {[%emt 00:00:08]} 44. Rd8 {[%clk 00:09:38]} {[%emt 00:00:28]} Bg7
{[%clk 00:04:16]} {[%emt 00:00:02]} 45. Rd7 {[%clk 00:09:18]} {[%emt 00:00:25]}
Bh8 {[%clk 00:04:15]} {[%emt 00:00:06]} 46. Bd2 {[%clk 00:08:57]} {[%emt
00:00:25]} Re4+ {[%clk 00:04:15]} {[%emt 00:00:07]} 47. Kf3 {[%clk 00:09:01]}
{[%emt 00:00:01]} Re6 {[%clk 00:04:19]} 48. Kf4 {[%clk 00:09:03]} {[%emt
00:00:03]} Be5+ {[%clk 00:04:20]} {[%emt 00:00:04]} 49. Kf3 {[%clk 00:09:04]}
{[%emt 00:00:05]} Bg7 {[%clk 00:04:23]} {[%emt 00:00:01]} 50. Bb4 {[%clk
00:08:34]} {[%emt 00:00:35]} Bh8 {[%clk 00:04:12]} {[%emt 00:00:17]} 51. Be7
{[%clk 00:08:23]} {[%emt 00:00:16]} Bg7 {[%clk 00:04:16]} {[%emt 00:00:01]} 52.
Bd8 {[%clk 00:08:14]} {[%emt 00:00:14]} Bh8 {[%clk 00:04:19]} {[%emt 00:00:01]}
53. Kg4 {[%clk 00:07:39]} {[%emt 00:00:40]} Re4+ {[%clk 00:04:21]} {[%emt
00:00:03]} 54. Kh3 {[%clk 00:07:43]} {[%emt 00:00:02]} Re6 {[%clk 00:04:25]}
{[%emt 00:00:01]} 1/2-1/2

[Event "Rapid Tournament (RAP)"]
[Site "Biel, Switzerland"]
[Date "2026.07.12"]
[Round "3.17"]
[White "Balabayeva, Xeniya"]
[Black "Piazza, Carlo"]
[Result "1-0"]
[TimeControl "15 + 5"]
[WhiteTitle "-"]
[BlackTitle "-"]
[WhiteFideId "13719688"]
[BlackFideId "809683"]
[WhiteElo "2291"]
[BlackElo "2076"]

1. d4 {[%clk 00:15:06]} {[%emt 00:02:04]} Nf6 {[%clk 00:15:08]} {[%emt
00:00:02]} 2. Nf3 {[%clk 00:15:09]} {[%emt 00:00:05]} g6 {[%clk 00:15:11]} 3.
g3 {[%clk 00:15:12]} {[%emt 00:00:02]} Bg7 {[%clk 00:14:55]} {[%emt 00:00:21]}
4. Bg2 {[%clk 00:15:16]} {[%emt 00:00:01]} O-O {[%clk 00:14:52]} {[%emt
00:00:08]} 5. O-O {[%clk 00:15:19]} {[%emt 00:00:02]} d5 {[%clk 00:13:22]}
{[%emt 00:01:36]} 6. c3 {[%clk 00:15:17]} {[%emt 00:00:07]} c6 {[%clk
00:12:55]} {[%emt 00:00:31]} 7. a4 {[%clk 00:15:10]} {[%emt 00:00:12]} a5
{[%clk 00:12:54]} {[%emt 00:00:06]} 8. Nbd2 {[%clk 00:14:58]} {[%emt 00:00:16]}
Bf5 {[%clk 00:12:50]} {[%emt 00:00:10]} 9. Re1 {[%clk 00:14:49]} {[%emt
00:00:14]} Ne4 {[%clk 00:12:27]} {[%emt 00:00:28]} 10. Nh4 {[%clk 00:14:48]}
{[%emt 00:00:06]} Nxd2 {[%clk 00:12:23]} {[%emt 00:00:09]} 11. Nxf5 {[%clk
00:14:08]} {[%emt 00:00:45]} gxf5 {[%clk 00:12:08]} {[%emt 00:00:20]} 12. Bxd2
{[%clk 00:13:11]} {[%emt 00:01:02]} Nd7 {[%clk 00:12:05]} {[%emt 00:00:09]} 13.
Qc2 {[%clk 00:12:41]} {[%emt 00:00:34]} e6 {[%clk 00:12:06]} {[%emt 00:00:04]}
14. f3 {[%clk 00:12:38]} {[%emt 00:00:08]} c5 {[%clk 00:10:14]} {[%emt
00:01:57]} 15. dxc5 {[%clk 00:11:11]} {[%emt 00:01:32]} Nxc5 {[%clk 00:09:34]}
{[%emt 00:00:45]} 16. Be3 {[%clk 00:11:04]} {[%emt 00:00:12]} Qc7 {[%clk
00:08:15]} {[%emt 00:01:24]} 17. Bf2 {[%clk 00:06:21]} {[%emt 00:04:49]} Rfd8
{[%clk 00:06:47]} {[%emt 00:01:32]} 18. Rec1 {[%clk 00:05:33]} {[%emt
00:00:53]} Na6 {[%clk 00:05:31]} {[%emt 00:01:21]} 19. Qb3 {[%clk 00:03:49]}
{[%emt 00:01:49]} Rd7 {[%clk 00:03:09]} {[%emt 00:02:27]} 20. Qb5 {[%clk
00:03:08]} {[%emt 00:00:45]} Qc6 {[%clk 00:02:53]} {[%emt 00:00:23]} 21. Qxa5
{[%clk 00:02:52]} {[%emt 00:00:20]} Nc7 {[%clk 00:02:16]} {[%emt 00:00:42]} 22.
Qb6 {[%clk 00:02:19]} {[%emt 00:00:38]} Qxb6 {[%clk 00:00:54]} {[%emt
00:01:28]} 23. Bxb6 {[%clk 00:02:22]} {[%emt 00:00:02]} Ra6 {[%clk 00:00:52]}
{[%emt 00:00:07]} 24. Bf2 {[%clk 00:02:01]} {[%emt 00:00:26]} e5 {[%clk
00:00:27]} {[%emt 00:00:29]} 25. Bh3 {[%clk 00:00:55]} {[%emt 00:01:11]} Rf6
{[%clk 00:00:18]} {[%emt 00:00:15]} 26. Rd1 {[%clk 00:00:51]} {[%emt 00:00:08]}
Rdd6 {[%clk 00:00:07]} {[%emt 00:00:15]} 27. Bc5 {[%clk 00:00:47]} {[%emt
00:00:10]} Rc6 {[%clk 00:00:00]} {[%emt 00:00:10]} 28. Be7 {[%clk 00:00:47]}
{[%emt 00:00:04]} 1-0

[Event "Rapid Tournament (RAP)"]
[Site "Biel, Switzerland"]
[Date "2026.07.12"]
[Round "3.18"]
[White "Shukhman, Anna"]
[Black "Sadeghi, Hassan Roger"]
[Result "1-0"]
[TimeControl "15 + 5"]
[WhiteTitle "-"]
[BlackTitle "-"]
[WhiteFideId "54180058"]
[BlackFideId "1304712"]
[WhiteElo "2272"]
[BlackElo "2028"]

1. e4 {[%clk 00:15:08]} Nc6 {[%clk 00:14:58]} {[%emt 00:00:14]} 2. Nc3 {[%clk
00:15:06]} {[%emt 00:00:08]} e5 {[%clk 00:15:00]} 3. Bc4 {[%clk 00:15:10]}
{[%emt 00:00:02]} Nf6 {[%clk 00:14:59]} {[%emt 00:00:05]} 4. d3 {[%clk
00:15:13]} {[%emt 00:00:02]} Bb4 {[%clk 00:14:59]} {[%emt 00:00:05]} 5. Bg5
{[%clk 00:15:15]} {[%emt 00:00:03]} h6 {[%clk 00:14:59]} {[%emt 00:00:04]} 6.
Bxf6 {[%clk 00:15:18]} {[%emt 00:00:03]} Bxc3+ {[%clk 00:15:03]} {[%emt
00:00:01]} 7. bxc3 {[%clk 00:15:20]} {[%emt 00:00:04]} Qxf6 {[%clk 00:15:05]}
{[%emt 00:00:02]} 8. Ne2 {[%clk 00:15:16]} {[%emt 00:00:09]} d6 {[%clk
00:14:40]} {[%emt 00:00:30]} 9. O-O {[%clk 00:15:03]} {[%emt 00:00:18]} g5
{[%clk 00:14:40]} {[%emt 00:00:04]} 10. Bb5 {[%clk 00:14:43]} {[%emt 00:00:25]}
Bd7 {[%clk 00:14:13]} {[%emt 00:00:32]} 11. c4 {[%clk 00:14:45]} {[%emt
00:00:04]} Rd8 {[%clk 00:12:59]} {[%emt 00:01:19]} 12. Nc3 {[%clk 00:14:24]}
{[%emt 00:00:26]} Ne7 {[%clk 00:12:59]} {[%emt 00:00:05]} 13. Bxd7+ {[%clk
00:13:34]} {[%emt 00:00:55]} Rxd7 {[%clk 00:13:02]} {[%emt 00:00:02]} 14. Nd5
{[%clk 00:13:07]} {[%emt 00:00:32]} Nxd5 {[%clk 00:13:04]} {[%emt 00:00:04]} 15.
cxd5 {[%clk 00:13:08]} {[%emt 00:00:03]} b6 {[%clk 00:12:43]} {[%emt 00:00:26]}
16. c4 {[%clk 00:12:13]} {[%emt 00:00:59]} a5 {[%clk 00:11:39]} {[%emt
00:01:09]} 17. Qh5 {[%clk 00:07:37]} {[%emt 00:04:41]} Qg6 {[%clk 00:11:21]}
{[%emt 00:00:22]} 18. Qh3 {[%clk 00:07:41]} g4 {[%clk 00:10:59]} {[%emt
00:00:27]} 19. Qe3 {[%clk 00:07:43]} {[%emt 00:00:04]} f5 {[%clk 00:08:17]}
{[%emt 00:02:47]} 20. exf5 {[%clk 00:07:03]} {[%emt 00:00:45]} Qxf5 {[%clk
00:08:09]} {[%emt 00:00:13]} 21. f4 {[%clk 00:06:00]} {[%emt 00:01:08]} gxf3
{[%clk 00:03:12]} {[%emt 00:05:02]} 22. Rxf3 {[%clk 00:06:03]} {[%emt
00:00:02]} Qh7 {[%clk 00:01:20]} {[%emt 00:01:57]} 23. Raf1 {[%clk 00:04:38]}
{[%emt 00:01:30]} Rg8 {[%clk 00:00:56]} {[%emt 00:00:29]} 24. Qf2 {[%clk
00:04:23]} {[%emt 00:00:20]} Rdg7 {[%clk 00:00:27]} {[%emt 00:00:33]} 25. Rf8+
{[%clk 00:03:40]} {[%emt 00:00:49]} Kd7 {[%clk 00:00:31]} {[%emt 00:00:01]} 26.
Qf7+ {[%clk 00:02:24]} {[%emt 00:01:21]} 1-0

[Event "Rapid Tournament (RAP)"]
[Site "Biel, Switzerland"]
[Date "2026.07.12"]
[Round "3.19"]
[White "Jehnichen, Kai"]
[Black "Dong, Hongfu"]
[Result "0-1"]
[TimeControl "15 + 5"]
[WhiteTitle "-"]
[BlackTitle "-"]
[WhiteFideId "24684333"]
[BlackFideId "8626960"]
[WhiteElo "1903"]
[BlackElo "2271"]

1. e4 {[%clk 00:15:07]} {[%emt 00:00:02]} c5 {[%clk 00:15:07]} {[%emt
00:00:05]} 2. Nf3 {[%clk 00:15:08]} {[%emt 00:00:02]} e6 {[%clk 00:15:10]}
{[%emt 00:00:02]} 3. c3 {[%clk 00:15:00]} {[%emt 00:00:13]} Nf6 {[%clk
00:15:13]} {[%emt 00:00:03]} 4. e5 {[%clk 00:15:03]} {[%emt 00:00:03]} Nd5
{[%clk 00:15:17]} 5. d4 {[%clk 00:15:07]} {[%emt 00:00:02]} cxd4 {[%clk
00:14:22]} {[%emt 00:01:00]} 6. cxd4 {[%clk 00:15:11]} {[%emt 00:00:01]} d6
{[%clk 00:14:26]} {[%emt 00:00:01]} 7. Nc3 {[%clk 00:15:07]} {[%emt 00:00:08]}
Nc6 {[%clk 00:13:54]} {[%emt 00:00:37]} 8. Bd3 {[%clk 00:15:01]} {[%emt
00:00:11]} dxe5 {[%clk 00:13:10]} {[%emt 00:00:49]} 9. dxe5 {[%clk 00:14:55]}
{[%emt 00:00:11]} Nxc3 {[%clk 00:10:40]} {[%emt 00:02:36]} 10. bxc3 {[%clk
00:14:57]} {[%emt 00:00:03]} Qa5 {[%clk 00:10:44]} {[%emt 00:00:01]} 11. O-O
{[%clk 00:14:54]} {[%emt 00:00:08]} Nxe5 {[%clk 00:10:48]} {[%emt 00:00:01]} 12.
Nxe5 {[%clk 00:14:50]} {[%emt 00:00:09]} Qxe5 {[%clk 00:10:51]} {[%emt
00:00:01]} 13. Bd2 {[%clk 00:14:47]} {[%emt 00:00:08]} Bd6 {[%clk 00:10:47]}
{[%emt 00:00:10]} 14. Qa4+ {[%clk 00:14:47]} {[%emt 00:00:05]} Bd7 {[%clk
00:10:50]} {[%emt 00:00:01]} 15. Qh4 {[%clk 00:14:51]} {[%emt 00:00:02]} Qd5
{[%clk 00:08:55]} {[%emt 00:01:59]} 16. Qh3 {[%clk 00:14:41]} {[%emt 00:00:15]}
Bb5 {[%clk 00:08:53]} {[%emt 00:00:08]} 17. Bxb5+ {[%clk 00:14:32]} {[%emt
00:00:14]} Qxb5 {[%clk 00:08:56]} {[%emt 00:00:01]} 18. Qg4 {[%clk 00:14:09]}
{[%emt 00:00:28]} O-O {[%clk 00:08:24]} {[%emt 00:00:38]} 19. Rab1 {[%clk
00:13:44]} {[%emt 00:00:30]} Qe5 {[%clk 00:08:15]} {[%emt 00:00:13]} 20. g3
{[%clk 00:13:37]} {[%emt 00:00:12]} b6 {[%clk 00:07:29]} {[%emt 00:00:52]} 21.
a4 {[%clk 00:13:41]} {[%emt 00:00:02]} Bc5 {[%clk 00:07:19]} {[%emt 00:00:15]}
22. Rbc1 {[%clk 00:13:14]} {[%emt 00:00:31]} Rad8 {[%clk 00:07:19]} {[%emt
00:00:05]} 23. Bg5 {[%clk 00:13:05]} {[%emt 00:00:13]} Rd5 {[%clk 00:07:20]}
{[%emt 00:00:04]} 24. Bf4 {[%clk 00:13:03]} {[%emt 00:00:07]} Qf5 {[%clk
00:07:20]} {[%emt 00:00:06]} 25. Qxf5 {[%clk 00:12:09]} {[%emt 00:00:59]} Rxf5
{[%clk 00:07:24]} {[%emt 00:00:02]} 26. a5 {[%clk 00:12:13]} g5 {[%clk
00:07:20]} {[%emt 00:00:09]} 27. Bd2 {[%clk 00:12:13]} {[%emt 00:00:05]} Rd8
{[%clk 00:07:21]} {[%emt 00:00:04]} 28. Rc2 {[%clk 00:12:17]} {[%emt 00:00:02]}
bxa5 {[%clk 00:07:08]} {[%emt 00:00:17]} 29. Ra2 {[%clk 00:12:12]} {[%emt
00:00:10]} a4 {[%clk 00:07:08]} {[%emt 00:00:05]} 30. Bc1 {[%clk 00:12:12]}
{[%emt 00:00:04]} Rd3 {[%clk 00:06:55]} {[%emt 00:00:18]} 0-1